[Event "44th Chess Olympiad Open 2022"]
[Site "Chennai"]
[Date "2022.07.30"]
[Round "2.57"]
[White "Cisse, Amadou Lamine"]
[Black "Othman, A. Moussa"]
[Result "0-1"]
[ECO "A56"]
[WhiteElo "2005"]
[BlackElo "2229"]
[Annotator "TA"]
[PlyCount "72"]
[EventDate "2022.07.29"]
[EventType "team-tourn"]
[EventCountry "IND"]
[SourceTitle "playchess.com"]
[Source "ChessBase"]
[SourceQuality "1"]
[WhiteTeam "Senegal"]
[BlackTeam "United Arab Emirates"]
[WhiteTeamCountry "SEN"]
[BlackTeamCountry "UAE"]
[TimeControl "40/5400+30:1800+30"]

{[%evp 9,72,60,54,44,85,82,91,38,51,45,45,-44,-33,-35,-27,-25,-21,-22,-28,-30,0,0,0,0,25,-38,17,6,10,8,9,13,11,-11,-8,-16,-17,-16,0,-51,-53,-74,-80,-80,-78,-77,-64,-336,-373,-358,-362,-410,-406,-404,-407,-433,-433,-456,-320,-622,-596,-620,-590,-29981,-29982]} 1. d4 {[%emt 0:00:15]} g6 {[%emt 0:00:10]} 2. c4 {[%emt 0:01:47]} Bg7 {[%emt 0:00:09]} 3. Nc3 {[%emt 0:00:36]} c5 {[%emt 0:00:53]} 4. d5 {[%emt 0:01:43]} d6 {[%emt 0:01:08]} 5. e4 {[%emt 0:01:44]} Nf6 {[%emt 0:00:41]} 6. Be3 {[%emt 0:02:13] A56: Czech Benoni.} b5 {[%emt 0:05:24]} 7. cxb5 {[%emt 0:01:53] [#]} Nbd7 $146 {[%emt 0:00:55]} ({Predecessor:} 7... a6 8. f3 O-O 9. Qd2 axb5 10. Bxb5 Ba6 11. Nge2 Qa5 12. a4 Nbd7 13. O-O Nb6 14. b3 Ne8 15. Rab1 Nc7 16. Bxa6 Qxa6 17. Bh6 {0-1 (57) Jensen,S (2205)-Hansen,G (2275) Copenhagen 1994}) 8. f4 {[%emt 0:02:29]} (8. Nf3 $16) 8... a6 {[%emt 0:03:29]} 9. Nf3 {[%emt 0:02:14]} O-O {[%emt 0:00:57][%cal Bh8f8,Bf8b8,Bb8b4][%mdl 32] [#] White must now prevent ...axb5.} 10. bxa6 {[%emt 0:02:04]} (10. a4 $14) 10... Qa5 {[%emt 0:04:48] Hoping for ...Nxe4.} ({Don't play} 10... Ng4 11. Bc1 $11) 11. Bd2 {[%emt 0:03:46]} Bxa6 {[%emt 0:00:39]} 12. Bxa6 {[%emt 0:02:01]} Qxa6 {[%emt 0:00:27]} 13. Qe2 $1 {[%emt 0:01:55]} Rfb8 {[%emt 0:00:42]} 14. Rb1 {[%emt 0:04:30]} Rb4 {[%emt 0:09:47]} 15. Qxa6 {[%emt 0:05:50]} Rxa6 {[%emt 0:00:10]} 16. a3 {[%emt 0:06:28]} Rb3 {[%emt 0:00:21]} 17. O-O {[%emt 0:02:03]} (17. Kd1 $11) 17... Rab6 {[%emt 0:05:40]} ({Better is} 17... Nb6 $15) 18. e5 {[%emt 0:04:14]} dxe5 {[%emt 0:06:45]} 19. fxe5 {[%emt 0:02:59]} Ng4 {[%emt 0:00:11]} 20. e6 {[%emt 0:09:35]} fxe6 {[%emt 0:03:03]} 21. dxe6 {[%emt 0:00:45]} Rxe6 {[%emt 0:11:31]} 22. h3 {[%emt 0:03:03]} Nge5 {[%emt 0:18:11][%cal Bg4e5,Be5c4,Bc4b2,Bb2d3,Bd3e1][%mdl 32]} 23. Ng5 {[%emt 0:05:03]} Rd6 {[%emt 0:01:47]} 24. Nge4 {[%emt 0:12:34]} (24. Nce4 $11) 24... Nc4 $1 $15 {[%emt 0:11:25][%csl LRb2,LRd2]} 25. Bg5 {[%emt 0:10:47]} ({But not} 25. Nxd6 Bd4+ 26. Kh1 Nxd2 $17) 25... Re6 {[%emt 0:02:52]} 26. Rbd1 {[%emt 0:00:59]} Bd4+ {[%emt 0:00:35]} 27. Kh1 {[%emt 0:01:02][%cal Oe4c5]} Nxb2 {[%emt 0:05:04]} 28. Rb1 {[%emt 0:02:24][%mdl 8192] This costs White the game.} Rxc3 $19 {[%emt 0:02:38]} ({And not} 28... Bxc3 29. Nxc3 Rxc3 30. Rxb2 $17) 29. Nxc3 {[%emt 0:00:13]} Bxc3 {[%emt 0:00:00]} 30. Rf2 {[%emt 0:02:42]} Nd3 {[%emt 0:02:06]} 31. Rc2 {[%emt 0:01:21]} Bd4 {[%emt 0:00:43]} 32. Kh2 {[%emt 0:01:49]} N7e5 {[%emt 0:00:56]} 33. Bh6 {[%emt 0:00:13] White threatens Rb8+ and mate.} g5 {[%emt 0:01:16]} 34. Rb8+ $2 {[%emt 0:00:56]} (34. Bxg5 Kf7 35. Rf1+ Ke8 36. Bd2) 34... Kf7 {[%emt 0:00:02]} 35. Bxg5 {[%emt 0:00:00]} Ne1 {[%emt 0:00:00]} 36. Re2 {[%emt 0:00:00] [#]} N5f3+ $1 {[%emt 0:00:00][%mdl 512] Weighted Error Value: White=0.64/Black=0.14 (very precise)} 0-1

[Event "44th Chess Olympiad Open 2022"]
[Site "Chennai"]
[Date "2022.07.30"]
[Round "2.57"]
[White "Badji, Sekou Aransbene"]
[Black "Mohamed Saeed Laily"]
[Result "0-1"]
[ECO "D06"]
[WhiteElo "1732"]
[BlackElo "2030"]
[Annotator "TA"]
[PlyCount "46"]
[EventDate "2022.07.29"]
[EventType "team-tourn"]
[EventCountry "IND"]
[SourceTitle "playchess.com"]
[Source "ChessBase"]
[SourceQuality "1"]
[WhiteTeam "Senegal"]
[BlackTeam "United Arab Emirates"]
[WhiteTeamCountry "SEN"]
[BlackTeamCountry "UAE"]
[TimeControl "40/5400+30:1800+30"]

{[%evp 10,46,19,25,44,24,27,14,16,15,17,12,28,15,34,-17,0,-33,11,-34,-13,-58,-10,-49,-43,-44,-51,-82,-62,-68,-85,-243,-219,-239,-225,-208,-229,-1460,-1447]} 1. d4 {[%emt 0:00:03]} d5 {[%emt 0:00:09]} 2. Nf3 {[%emt 0:01:15]} Bf5 {[%emt 0:00:10]} 3. c4 {[%emt 0:02:08]} e6 {[%emt 0:00:07]} 4. Nc3 {[%emt 0:00:27]} Nc6 {[%emt 0:00:58]} 5. Bf4 {[%emt 0:04:00]} Nf6 {[%emt 0:03:04]} 6. e3 {[%emt 0:00:42]} Bd6 {[%emt 0:03:07] D06: Queen's Gambit: Symmetrical and Baltic Defences.} 7. Bg3 {[%emt 0:03:58]} O-O {[%emt 0:01:24]} 8. Be2 {[%emt 0:01:16]} h6 {[%emt 0:02:51] The position is equal.} 9. O-O {[%emt 0:01:30]} Bxg3 {[%emt 0:12:01]} 10. hxg3 {[%emt 0:00:16]} dxc4 {[%emt 0:00:37]} 11. Bxc4 {[%emt 0:00:16]} a6 {[%emt 0:00:28]} 12. a4 {[%emt 0:01:59] [#]} ({White should play} 12. Re1 $14) 12... Qe7 $146 {[%emt 0:00:50]} ({Predecessor:} 12... Qd6 13. Bd3 Bxd3 14. Qxd3 e5 15. Rfd1 Rad8 16. Qc4 exd4 17. Nxd4 Ne5 18. Qb3 c5 {0-1 (27) Harris,R (1458)-Polkwitzauer,A (2000) FICGS email 2011}) 13. Bd3 {[%emt 0:01:25]} Bg4 {[%emt 0:01:03]} 14. Na2 {[%emt 0:07:55][%cal Ob2b4]} Rfd8 {[%emt 0:05:00][%cal Bf8d8,Bd8d2,Bd2e2][%mdl 32]} 15. Qb3 {[%emt 0:02:35]} Rab8 {[%emt 0:14:17]} (15... e5 $15 {feels stronger.} 16. Nxe5 (16. Qxb7 Na5 $17) 16... Nxe5 17. dxe5 Qxe5) 16. Rac1 {[%emt 0:01:28]} Bxf3 {[%emt 0:02:18]} 17. gxf3 {[%emt 0:00:10]} e5 {[%emt 0:00:17]} 18. dxe5 {[%emt 0:05:48]} Nxe5 {[%emt 0:00:10][%cal Bc6e5,Be5f3,Bf3d4][%mdl 32]} 19. Be2 {[%emt 0:00:39]} Rd2 {[%emt 0:06:51]} 20. Rfe1 {[%emt 0:12:42] [#] Now White is beyond hope.} (20. f4 $17 {was called for.} Rxe2 21. fxe5 Qxe5 22. Nc3) 20... Rxe2 $1 $19 {[%emt 0:23:53][%mdl 512]} 21. Rxe2 {[%emt 0:00:12]} Nxf3+ {[%emt 0:00:04] Pair of Knights!} 22. Kf1 {[%emt 0:05:24]} Qe4 {[%emt 0:03:52][%mdl 1024] Black has strong compensation.} 23. Rc4 {[%emt 0:29:35] [#] Prevents Nd4.} (23. Qc4 Nd4 24. Ke1 Nxe2 25. Qxe4 Nxe4 26. Kxe2) 23... Nd4 $1 {[%emt 0:02:34][%mdl 576] Pin, Double Attack.  Weighted Error Value: White=0.72/Black=0.11 (very precise)} 0-1

[Event "44th Chess Olympiad Open 2022"]
[Site "Chennai"]
[Date "2022.07.30"]
[Round "2.58"]
[White "Razanadrakotoarisoa, Toavina"]
[Black "Garber, Ousainou"]
[Result "1-0"]
[ECO "B46"]
[WhiteElo "2039"]
[BlackElo "1772"]
[Annotator "TA"]
[PlyCount "53"]
[EventDate "2022.07.29"]
[EventType "team-tourn"]
[EventCountry "IND"]
[SourceTitle "playchess.com"]
[Source "ChessBase"]
[SourceQuality "1"]
[WhiteTeam "Madagascar"]
[BlackTeam "Gambia"]
[WhiteTeamCountry "MAD"]
[BlackTeamCountry "GAM"]
[TimeControl "40/5400+30:1800+30"]

{[%evp 12,53,52,59,64,58,137,137,182,164,190,186,185,146,172,106,133,108,137,139,149,141,136,95,161,95,93,75,114,54,1033,1004,1070,1061,2808,2648,12832,2057,29978,1677,29991,29990,29998,29999]} 1. e4 {[%emt 0:00:07]} c5 {[%emt 0:00:14]} 2. Nf3 {[%emt 0:00:15]} e6 {[%emt 0:00:50]} 3. d4 {[%emt 0:00:19]} cxd4 {[%emt 0:01:03]} 4. Nxd4 {[%emt 0:00:10]} Nc6 {[%emt 0:00:22]} 5. Nc3 {[%emt 0:00:19]} a6 {[%emt 0:00:28]} 6. Be3 {[%emt 0:00:19][%cal Bc1e3,Be3c5,Bc5d6][%mdl 32]} Bb4 {[%emt 0:00:57]} 7. Nxc6 {[%emt 0:01:08]} bxc6 {[%emt 0:00:39] B46: Sicilian: Taimanov: 5 Nc3 a6.} 8. Qd4 {[%emt 0:00:42][%csl LRb4,LRg7]} Bxc3+ {[%emt 0:04:14]} (8... Bf8 $1 $14) 9. Qxc3 $16 {[%emt 0:00:13]} f6 {[%emt 0:02:09] [#] White is clearly better.} 10. h4 $146 {[%emt 0:13:09]} ({Predecessor:} 10. Bc4 Ne7 11. O-O-O Qc7 12. g3 Qe5 13. Qxe5 fxe5 14. Rd6 O-O 15. a4 Kh8 16. Bc5 {1-0 (61) Cabanas Bravo,J (2058)-Uceda Martinez,J (1795) Madrid 2014}) 10... Ne7 {[%emt 0:00:54]} 11. Bc5 {[%emt 0:00:23]} O-O {[%emt 0:00:42]} 12. Bd6 {[%emt 0:01:45]} Rf7 {[%emt 0:00:30]} 13. h5 {[%emt 0:01:03]} (13. O-O-O $18) 13... h6 {[%emt 0:00:19]} 14. g4 {[%emt 0:09:01]} a5 {[%emt 0:00:38]} 15. O-O-O {[%emt 0:03:20]} Ba6 {[%emt 0:01:17]} 16. Bxa6 {[%emt 0:01:49]} Rxa6 {[%emt 0:00:21]} 17. Qc4 {[%emt 0:02:29] 0x0.0020aec30deadp-1022s more active pieces.} Rb6 {[%emt 0:00:51]} (17... Ra8 $16) 18. f4 {[%emt 0:00:49]} ({Better is} 18. a4 $18) 18... Nc8 {[%emt 0:02:56]} 19. Bc5 $36 {[%emt 0:00:31][%mdl 2048] [#] And now Qxe6 would win. White has strong initiative.} Rb5 {[%emt 0:02:22]} 20. a4 {[%emt 0:01:23]} ({White should try} 20. Ba3 $16) 20... d5 $2 {[%emt 0:00:48][%mdl 8192] A mistake that costs the game.} (20... Nb6 $14 21. Bxb6 Rxb6) 21. axb5 $18 {[%emt 0:00:18]} Qc7 {[%emt 0:02:04]} 22. exd5 {[%emt 0:03:09]} cxb5 {[%emt 0:00:30]} 23. Qxb5 {[%emt 0:00:42]} exd5 {[%emt 0:03:42]} 24. Kb1 {[%emt 0:01:58]} Rd7 {[%emt 0:02:23] [#]} 25. Rhe1 {[%emt 0:00:17]} (25. Rxd5 $142 $3 Rxd5 26. Qe8+ Kh7 27. Qe4+ Kg8 28. Qxd5+ Kh7 29. Re1 Nd6 30. Bxd6) 25... f5 {[%emt 0:04:17]} 26. Re8+ {[%emt 0:00:39]} Kf7 {[%emt 0:00:25]} 27. Rf8+ {[%emt 0:00:14] Weighted Error Value: White=0.24 (precise) /Black=1.04} 1-0

[Event "44th Chess Olympiad Open 2022"]
[Site "Chennai"]
[Date "2022.07.30"]
[Round "2.58"]
[White "Dalliah, Joseph"]
[Black "Andrianiaina, Heritiana"]
[Result "0-1"]
[ECO "A80"]
[WhiteElo "1920"]
[BlackElo "2095"]
[Annotator "TA"]
[PlyCount "206"]
[EventDate "2022.07.29"]
[EventType "team-tourn"]
[EventCountry "IND"]
[SourceTitle "playchess.com"]
[Source "ChessBase"]
[SourceQuality "1"]
[WhiteTeam "Gambia"]
[BlackTeam "Madagascar"]
[WhiteTeamCountry "GAM"]
[BlackTeamCountry "MAD"]
[TimeControl "40/5400+30:1800+30"]

{[%evp 15,206,-12,-13,-16,-8,-18,8,14,9,6,20,22,33,6,0,0,0,-5,43,0,39,-29,0,-16,-11,-8,77,63,56,29,79,0,60,51,87,86,72,72,87,22,16,9,30,-39,11,-39,-39,-61,-61,-61,-61,-61,-61,-54,-39,-39,-39,-39,-39,-46,-46,-46,-46,-345,-46,-353,-46,-201,-58,-58,-58,-58,-58,-58,-51,-51,-51,-51,-51,-51,-51,-51,-51,-51,4,-52,-51,-51,0,-51,-51,-51,-51,-51,-51,-51,-51,-51,-51,-51,-51,-51,-51,-51,-51,-72,-52,-92,-75,-82,-75,-75,-75,-102,-64,-102,-102,-102,-102,-122,-122,-122,-108,-120,-108,-122,-72,-98,0,0,0,-98,-98,-102,-102,-110,-110,-110,-102,-102,-98,-216,-227,-232,-208,-431,-368,-422,-158,-425,-408,-377,-328,-481,-443,-474,-464,-447,-389,-368,-331,-560,-602,-574,-961,-891,-890,-824,-785,-1214,-1230,-1280,-1174,-1405,-1241,-622,-583,-4694,-4299,-29963,-29965,-29969,-29970,-29970,-29971,-29971,-29972,-29972,-29972,-29972,-29972,-29968,-29969]} 1. d4 {[%emt 0:00:05]} Nf6 {[%emt 0:01:05]} 2. c4 {[%emt 0:00:14]} e6 {[%emt 0:00:17]} 3. Nc3 {[%emt 0:00:22]} Bb4 {[%emt 0:00:30]} 4. Nf3 {[%emt 0:00:17]} Ne4 {[%emt 0:00:32]} 5. Qc2 {[%emt 0:00:22]} f5 {[%emt 0:00:10]} 6. Bf4 {[%emt 0:00:30]} O-O {[%emt 0:00:47]} 7. e3 {[%emt 0:00:07]} b6 {[%emt 0:00:12]} 8. Bd3 {[%emt 0:00:42]} Bb7 {[%emt 0:00:07]} 9. O-O {[%emt 0:02:33][%cal Rc3e4] A80: Dutch Defence: Unusual White second moves.} Bxc3 {[%emt 0:00:40]} 10. bxc3 {[%emt 0:01:36]} g5 {[%emt 0:04:46]} 11. Bg3 {[%emt 0:02:17] The position is equal.} d6 {[%emt 0:03:32] [#]} 12. Nd2 $146 {[%emt 0:04:35]} ({Predecessor:} 12. h4 g4 13. Nd2 Nxd2 14. Qxd2 Nd7 15. a4 Qf6 16. a5 Rab8 17. axb6 axb6 18. Qe2 {0-1 (48) Unluturk,K (1824)-Erdogan,Y (1700) Konya 2017}) 12... Nxd2 {[%emt 0:06:56]} 13. Qxd2 {[%emt 0:00:03]} h5 {[%emt 0:04:39] Hoping for ...h4.} 14. h3 {[%emt 0:00:35]} h4 {[%emt 0:00:30]} 15. Bh2 {[%emt 0:00:13]} Nd7 {[%emt 0:06:40]} 16. Qe2 {[%emt 0:05:24]} Nf6 {[%emt 0:03:59]} (16... Qf6 $11 {feels stronger.}) 17. a4 {[%emt 0:08:43]} (17. f3 $5 {[%cal Re3e4]}) 17... a5 {[%emt 0:01:18]} 18. Rfd1 {[%emt 0:05:08]} (18. f3 $14) 18... Qd7 {[%emt 0:06:08]} (18... Rf7 $5 {[%cal Rf7g7]}) 19. f3 {[%emt 0:02:33][%cal Oc4c5] Inhibits g4.} Qg7 {[%emt 0:00:56]} 20. e4 {[%emt 0:09:04]} f4 {[%emt 0:10:48]} (20... g4 $11 21. fxg4 (21. exf5 gxf3 22. Qf2 Rae8 $17) 21... fxg4) 21. Kh1 {[%emt 0:03:54]} Nh5 {[%emt 0:02:15][%cal Bf6h5,Bh5g3,Bg3e2][%mdl 32]} 22. Qa2 {[%emt 0:13:48][%cal Oc4c5]} Rae8 {[%emt 0:10:30]} (22... Ng3+ $11 23. Bxg3 hxg3) 23. Rab1 {[%emt 0:00:00]} (23. Bg1 $16) 23... Bc6 {[%emt 0:04:31]} ({Black should play} 23... Ng3+ $11 24. Bxg3 hxg3) 24. Bg1 $14 {[%emt 0:00:00]} Qd7 {[%emt 0:02:20]} 25. Bc2 {[%emt 0:00:00]} Ng3+ {[%emt 0:00:07]} 26. Kh2 {[%emt 0:00:00]} Ne2 {[%emt 0:00:12]} 27. Qa3 {[%emt 0:01:41]} (27. d5 $16 Ba8 28. dxe6 Rxe6 29. Rb5) 27... Nxg1 $11 {[%emt 0:00:25]} 28. Kxg1 {[%emt 0:00:44]} Qe7 {[%emt 0:01:13]} 29. Qc1 {[%emt 0:05:53]} (29. Qa2 $11) 29... Kg7 {[%emt 0:01:45]} (29... e5 $15) 30. Qd2 {[%emt 0:00:05]} (30. e5 $11) 30... e5 $15 {[%emt 0:05:09]} 31. d5 {[%emt 0:00:13]} Bd7 {[%emt 0:00:54]} 32. Rb2 {[%emt 0:01:01][%cal Oc4c5]} Rf6 {[%emt 0:00:36]} 33. Qf2 {[%emt 0:01:11]} Rh8 {[%emt 0:00:36]} 34. Bb3 {[%emt 0:01:14]} Qe8 {[%emt 0:00:59]} 35. Ra2 {[%emt 0:00:09]} Qc8 {[%emt 0:01:58]} 36. Qf1 {[%emt 0:01:02]} Rg6 {[%emt 0:00:10][%cal Og5g4]} 37. Kf2 {[%emt 0:01:15]} Kf6 {[%emt 0:11:09][%cal Og5g4] Threatens to win with ...g4!} 38. Ke1 {[%emt 0:00:12]} Ke7 {[%emt 0:01:18]} 39. Qf2 $2 {[%emt 0:03:05][%mdl 8192] [#]} (39. Rc1 $15) 39... Qg8 $2 {[%emt 0:01:16]} (39... Bxh3 $1 $19 {[%mdl 512]} 40. gxh3 Qxh3) 40. Rad2 $2 {[%emt 0:00:40][%mdl 8192]} (40. c5 $15) 40... Rh7 $2 {[%emt 0:00:34]} (40... g4 $1 $19 {[%cal Rg4h3]} 41. hxg4 Bxg4) 41. Rd3 $2 {[%emt 0:40:08]} ({White should try} 41. c5 $15) 41... Ke8 {[%emt 0:33:38]} (41... g4 $1 $19 {[%cal Rg4h3]} 42. fxg4 Rh8) 42. R1d2 {[%emt 0:00:06]} Rhg7 {[%emt 0:01:29]} 43. Kd1 {[%emt 0:00:06]} Kd8 {[%emt 0:01:09]} 44. Kc1 {[%emt 0:00:18]} Kc8 {[%emt 0:02:05]} 45. Kb2 {[%emt 0:00:42]} Qe8 {[%emt 0:01:35]} 46. Ka3 {[%emt 0:00:06]} Qf8 {[%emt 0:00:03]} 47. Kb2 {[%emt 0:00:27]} Qf6 {[%emt 0:00:38]} 48. Qg1 {[%emt 0:00:33]} Kb7 {[%emt 0:00:26]} 49. Ka3 {[%emt 0:01:02]} Rg8 {[%emt 0:00:11]} (49... Qd8 $15) 50. Rb2 {[%emt 0:00:14]} (50. c5 $1 $11 dxc5 51. d6) 50... Kc8 {[%emt 0:00:08]} 51. Ka2 {[%emt 0:00:16]} Kd8 {[%emt 0:01:20]} (51... Qf8 $15) 52. Bd1 {[%emt 0:00:22]} ({Better is} 52. c5 $1 $11) 52... Ke7 {[%emt 0:00:24]} 53. Bc2 {[%emt 0:00:46]} Qg7 {[%emt 0:00:53]} 54. Rd1 {[%emt 0:00:32]} Qh6 {[%emt 0:00:00]} 55. Qf2 {[%emt 0:00:00]} Qh5 {[%emt 0:00:00]} 56. Rh1 {[%emt 0:00:19]} R6g7 {[%emt 0:00:10]} 57. Kb1 {[%emt 0:00:00]} Rb8 {[%emt 0:00:00]} 58. Ka2 {[%emt 0:00:00]} Qe8 {[%emt 0:00:00]} 59. Ka3 {[%emt 0:00:00]} Bc8 {[%emt 0:00:00]} 60. Bb3 {[%emt 0:00:00]} Kf6 {[%emt 0:00:00]} 61. Ra2 {[%emt 0:00:00]} Ba6 {[%emt 0:00:00]} 62. Rd1 {[%emt 0:00:00]} Rd7 {[%emt 0:00:00]} 63. Rad2 {[%emt 0:00:00]} Qc8 {[%emt 0:00:00]} 64. Kb2 {[%emt 0:00:00]} Qb7 {[%emt 0:00:00]} 65. Kc2 {[%emt 0:00:00]} c6 {[%emt 0:00:00]} 66. Qe2 {[%emt 0:00:00]} Rc8 {[%emt 0:00:00]} 67. Kb2 {[%emt 0:00:00]} cxd5 {[%emt 0:00:00]} 68. Rxd5 {[%emt 0:00:00]} Qc6 {[%emt 0:00:00]} 69. Qd3 {[%emt 0:02:25][%cal Rd5d6]} Ke7 {[%emt 0:00:10]} 70. Rd2 {[%emt 0:00:00]} Rcc7 {[%emt 0:00:00]} (70... Bxc4 $2 71. Bxc4 Qxc4 72. Rxe5+ $3 {[%mdl 512]} Kd8 73. Qxc4 (73. Rxg5 Qxa4 74. Qa6 Qc4 $18) 73... Rxc4 74. Rxg5 $18) (70... Qc7 $142 71. Qc2 Bxc4 72. Bxc4 Qxc4) 71. Rd1 {[%emt 0:00:00]} Bxc4 {[%emt 0:00:00]} (71... Rb7 $17) 72. Bxc4 $11 {[%emt 0:00:02]} Qxc4 {[%emt 0:00:01]} 73. Qxc4 {[%emt 0:00:00]} (73. Rxd6 $11 Qxd3 74. R6xd3) 73... Rxc4 $17 {[%emt 0:00:00][%mdl 4096] Endgame KRR-KRR. White is now going downhill.} 74. Kb3 {[%emt 0:00:00]} Rdc7 {[%emt 0:00:00]} 75. R1d3 {[%emt 0:00:00]} R7c6 {[%emt 0:00:00]} 76. Rb5 {[%emt 0:00:00]} R4c5 {[%emt 0:00:00]} 77. Rxc5 {[%emt 0:00:00]} bxc5 {[%emt 0:00:00] KR-KR} ({Reject} 77... dxc5 $6 78. c4 $11) 78. Kc4 {[%emt 0:00:04]} (78. Rd5 $17) 78... Rb6 {[%emt 0:00:00]} 79. Rd2 {[%emt 0:01:27] Inhibits Rb2.} Kd7 {[%emt 0:00:00]} 80. Rc2 $2 {[%emt 0:01:04]} (80. Kd3 {was necessary.}) 80... Kc6 {[%emt 0:00:00]} 81. Ra2 {[%emt 0:02:29]} Rb1 {[%emt 0:00:00] White must now prevent ...Rd1.} 82. Rd2 $2 {[%emt 0:00:13]} (82. Rc2 $17 {was the only defense.}) 82... Ra1 $19 {[%emt 0:00:00]} 83. Kb3 {[%emt 0:00:03] [#]} c4+ $1 {[%emt 0:00:00]} 84. Kxc4 {[%emt 0:00:05]} (84. Kb2 $142 Rg1 85. Rf2) 84... Rxa4+ {[%emt 0:00:05]} 85. Kb3 {[%emt 0:00:34]} Ra1 {[%emt 0:00:04]} 86. Kb2 {[%emt 0:03:44]} Rg1 {[%emt 0:00:00]} 87. Kb3 {[%emt 0:01:06]} Rb1+ {[%emt 0:00:00]} 88. Ka4 $2 {[%emt 0:01:43]} (88. Kc2 {is the only way for White.} Rb5 89. Kc1) 88... Kc5 {[%emt 0:00:00]} 89. Rd5+ {[%emt 0:05:36] [#]} Kc4 $1 {[%emt 0:01:12][%cal Rb1a1]} 90. Kxa5 {[%emt 0:00:05]} Rb2 {[%emt 0:00:04]} 91. Rxd6 {[%emt 0:00:29]} Rxg2 {[%emt 0:00:04]} 92. Rd5 {[%emt 0:01:48]} Rg3 {[%emt 0:00:40]} 93. Rxe5 {[%emt 0:00:11]} Rxh3 {[%emt 0:00:13]} 94. Rxg5 {[%emt 0:00:22]} Rxf3 {[%emt 0:00:02]} 95. e5 {[%emt 0:01:46]} Kc5 {[%emt 0:08:42] aiming for ...Rg3.} 96. Ka6 {[%emt 0:07:02]} Rxc3 {[%emt 0:02:00] ( -> ...f3)} 97. Rg4 {[%emt 0:00:20]} f3 {[%emt 0:00:40][%cal Bf4f3,Bf3f2][%mdl 32] Black mates.} 98. Rxh4 {[%emt 0:00:13]} f2 {[%emt 0:00:07]} 99. Rf4 {[%emt 0:00:07]} Rc2 {[%emt 0:00:05]} 100. Rf6 {[%emt 0:03:39]} Kd5 {[%emt 0:00:17]} 101. e6 {[%emt 0:00:05]} Kd6 {[%emt 0:00:11]} 102. Kb5 {[%emt 0:01:00]} Ke7 {[%emt 0:01:56]} 103. Rf3 {[%emt 0:00:05]} Kxe6 {[%emt 0:00:08] Weighted Error Value: White=0.43/Black=0.30} 0-1